bitfinex-derivatives/quotes_ETHF0:USTF0_20251203
["timestamp","ask_amount","ask_price","bid_price","bid_amount"]
[1764785618227,1.1297,3139.8,3139.7,1.4226]
[1764785618524,1.1297,3139.8,3139.6,0.00477859]
[1764785618826,2.708,3139.7,3139.6,0.00477859]
[1764785620229,0.00258371,3140.0,3139.7,1.8155]
[1764785621626,0.00258371,3140.0,3139.9,5.0233]
[1764785622222,0.00258371,3140.0,3139.9,6.8388]
[1764785623129,4.06228371,3140.0,3139.9,3.2078]
[1764785624929,5.27138371,3140.0,3139.9,3.2078]
[1764785625527,4.0597,3139.7,3139.6,0.00477859]
[1764785626930,2.0306,3139.7,3139.6,0.00477859]
[1764785627234,4.0597,3139.7,3139.6,0.00477859]
[1764785628130,3.24228371,3140.0,3139.9,1.8155]
[1764785628326,5.5803077,3140.0,3139.6,0.00477859]
[1764785628528,4.0597,3139.7,3139.6,0.00477859]
[1764785630235,2.0306,3138.6,3138.2,4.03852098]
[1764785630431,4.0597,3138.6,3138.2,3.2078]
[1764785631231,2.0306,3138.3,3138.2,3.2078]
[1764785631536,4.0597,3138.3,3138.2,3.2078]
[1764785632046,5.2688,3138.0,3137.9,0.00241865]
[1764785632838,2.0306,3138.0,3137.9,2.04921865]
[1764785633140,4.0597,3138.3,3138.2,2.0468]
[1764785633436,2.0306,3138.3,3138.2,2.0468]
[1764785633734,7.2675,3138.3,3137.9,0.00241865]
[1764785633937,4.0597,3138.0,3137.9,2.04921865]
[1764785634135,5.2688,3138.0,3137.9,0.00241865]
[1764785635833,2.0306,3138.0,3137.9,2.04921865]
[1764785636028,3.2078,3138.3,3137.9,2.04921865]
[1764785636029,3.2078,3138.3,3137.9,3.93541865]
[1764785636535,5.2384,3138.3,3138.2,2.0468]
[1764785637840,2.0306,3138.3,3138.2,3.933]
[1764785638041,3.21257859,3138.7,3138.0,1.1511]
[1764785639047,3.21257859,3138.7,3138.6,3.933]
[1764785639343,5.24317859,3138.7,3138.6,3.933]
[1764785641144,7.27227859,3138.7,3138.6,2.0468]
[1764785641344,7.27227859,3138.7,3138.0,1.1511]
[1764785641647,5.24317859,3138.7,3138.6,3.933]
[1764785642139,2.0306,3138.1,3138.0,2.0468]
[1764785642335,5.24167859,3138.7,3138.0,5.0841]
[1764785642336,3.21257859,3138.7,3138.0,5.0841]
[1764785642539,5.24317859,3138.7,3138.6,2.0468]
[1764785642742,5.24317859,3138.7,3138.6,3.933]
[1764785642942,2.03537859,3138.7,3138.6,3.933]
[1764785643146,0.00477859,3138.7,3138.6,3.933]
[1764785643441,1.92547859,3138.7,3138.6,3.933]
[1764785643641,0.00477859,3138.7,3138.6,3.933]
[1764785644238,1.92547859,3138.7,3138.6,3.933]
[1764785644445,3.8567,3138.1,3138.0,3.2078]
[1764785644742,3.8567,3138.1,3138.0,5.1288]
[1764785644942,3.8567,3138.1,3138.0,3.9]
[1764785644943,1.9207,3138.1,3138.0,3.9]
[1764785645141,3.8567,3138.1,3138.0,1.921]
[1764785645347,3.8567,3138.1,3137.9,0.00241865]
[1764785645348,5.1654,3138.0,3137.9,0.00241865]
[1764785645645,3.8567,3137.7,3136.8,3.2078]
[1764785645946,4.3572,3137.5,3136.8,3.2078]
[1764785646448,4.3572,3137.5,3136.8,3.21577088]
[1764785646449,3.8567,3136.9,3136.8,3.21577088]
[1764785648246,7.0645,3136.9,3136.8,0.00797088]
[1764785648448,3.2078,3136.9,3136.8,3.9]
[1764785648853,5.1285,3136.9,3136.8,1.921]
[1764785649151,3.8567,3136.9,3136.3,3.2078]
[1764785649451,3.86147859,3136.9,3136.3,3.21583106]
[1764785650049,3.8567,3136.4,3136.3,0.00803106]
[1764785650252,1.9207,3136.4,3136.3,3.90803106]
[1764785650453,3.8567,3136.4,3136.3,0.00803106]
[1764785652452,1.9207,3136.4,3136.3,1.92903106]
[1764785652859,3.8567,3136.4,3136.3,1.92903106]
[1764785653047,3.8567,3136.4,3136.3,0.00803106]
[1764785655262,3.8567,3136.4,3136.3,1.92903106]
[1764785655565,3.8567,3136.4,3136.3,0.00803106]
[1764785655861,1.92547859,3136.9,3136.8,1.921]
[1764785656058,1.92547859,3136.9,3136.3,3.21583106]
[1764785656059,3.86147859,3136.9,3136.3,3.21583106]
[1764785657053,1.92547859,3136.9,3136.8,3.9]
[1764785657765,1.92547859,3136.9,3136.3,3.21583106]
[1764785657766,1.92547859,3136.9,3136.5,0.3487]
[1764785657966,1.92547859,3136.9,3136.3,3.21583106]
[1764785659563,1.92547859,3136.9,3136.8,1.921]
[1764785659769,3.86147859,3136.9,3136.8,1.921]
[1764785660074,1.92547859,3136.9,3136.8,1.921]
[1764785660370,3.86147859,3136.9,3136.5,0.3487]
[1764785660563,3.86147859,3136.9,3136.8,1.921]
[1764785660764,1.92547859,3136.9,3136.8,3.9]
[1764785661367,0.00477859,3136.9,3136.8,7.1078]
[1764785661669,8.21640856,3137.5,3136.8,6.9958]
[1764785662173,8.21640856,3137.5,3137.4,1.921]
[1764785662667,8.21640856,3137.5,3136.8,6.9958]
[1764785664169,1.9207,3136.9,3136.8,8.9168]
[1764785664368,3.8567,3136.9,3136.8,8.9168]
[1764785664672,3.8567,3136.9,3136.8,3.788]
[1764785665773,3.8567,3136.9,3136.8,5.709]
[1764785665969,3.8567,3136.9,3136.8,1.921]
[1764785666375,1.9207,3136.5,3136.4,5.1288]
[1764785666674,1.9207,3136.5,3136.4,7.1078]
[1764785666871,4.3572,3137.0,3136.4,7.1078]
[1764785667064,3.2078,3136.9,3136.4,7.1078]
[1764785667470,7.0645,3136.9,3136.8,1.921]
[1764785667678,7.0645,3136.9,3136.4,3.2078]
[1764785667877,3.8567,3136.9,3136.4,3.2078]
[1764785668079,1.9207,3136.9,3136.8,3.9]
[1764785668680,3.8567,3136.9,3136.8,1.921]
[1764785669878,3.8567,3136.9,3136.4,3.2078]
[1764785670384,3.8567,3136.9,3136.8,1.921]
[1764785670580,3.36714,3137.3,3136.8,3.9]
[1764785670886,3.8567,3136.4,3136.3,0.00803106]
[1764785671075,3.8567,3136.4,3136.3,1.92903106]
[1764785671381,3.8567,3136.4,3136.3,3.90803106]
[1764785671580,3.8567,3136.4,3136.3,1.92903106]
[1764785671885,3.8567,3136.4,3136.3,0.00803106]
[1764785672781,1.9207,3136.4,3136.3,3.90803106]
[1764785672986,0.15937,3136.7,3136.3,3.90803106]
[1764785673278,0.30971164,3136.6,3136.3,3.90803106]
[1764785673484,3.7302,3136.4,3136.3,0.00803106]
[1764785673674,3.7302,3136.4,3136.3,1.86423106]
[1764785673875,3.7302,3136.4,3136.3,3.81823106]
[1764785674581,1.7925,3136.4,3136.3,3.81823106]
[1764785675082,4.8444,3136.0,3135.9,0.69892784]
[1764785675291,3.7302,3135.8,3135.7,1.8562]
[1764785675482,1.7925,3135.8,3135.7,3.8102]
[1764785675683,4.8444,3136.0,3135.9,1.8562]
[1764785675882,5.15468787,3136.0,3135.9,1.8562]
[1764785676192,5.15468787,3136.0,3135.9,1.85968483]
[1764785676482,0.00477859,3136.3,3135.9,3.81368483]
[1764785676685,0.31503862,3136.3,3135.9,3.81368483]
[1764785676887,4.8444,3136.0,3135.9,0.00348483]
[1764785677080,1.79727859,3136.3,3136.2,3.8102]
[1764785677279,0.31504745,3136.3,3136.2,3.8102]
[1764785677786,0.00477859,3136.3,3136.2,3.8102]
[1764785678178,3.73497859,3136.3,3136.2,3.8102]
[1764785678380,3.73497859,3136.3,3135.9,1.12735189]
[1764785678381,4.8444,3136.0,3135.9,0.00348483]
[1764785678580,5.31403496,3136.0,3135.9,1.85968483]
[1764785678782,4.19983496,3136.0,3135.9,1.85968483]
[1764785679188,5.07052496,3136.0,3135.9,0.00348483]
[1764785680478,3.4087,3135.7,3135.6,0.00477859]
[1764785680679,3.71892496,3135.7,3135.6,0.00477859]
[1764785681485,3.2078,3135.9,3135.6,3.61337782]
[1764785681684,4.9253,3135.9,3135.8,1.857]
[1764785681883,6.92645441,3135.9,3135.8,1.857]
[1764785682083,1.7175,3135.7,3135.6,3.61337782]
[1764785682584,3.4087,3135.7,3135.6,0.00727782]
[1764785684285,3.87793554,3135.7,3135.6,0.00727782]
[1764785685388,3.56812,3135.7,3135.6,0.00727782]
[1764785687285,6.77592,3135.7,3135.6,0.00727782]
[1764785688691,6.77592,3135.7,3134.9,3.2078]
[1764785688995,1.7175,3135.0,3134.9,6.8139]
[1764785689292,1.0301,3135.5,3134.9,6.8139]
[1764785689693,3.41181492,3135.5,3135.4,3.6061]
[1764785690085,1.72061492,3135.5,3135.4,3.6061]
[1764785690287,0.00311492,3135.5,3135.4,3.6061]
[1764785692795,1.72061492,3135.5,3135.4,3.6061]
[1764785693485,3.41181492,3135.5,3135.4,3.6061]
[1764785693689,0.00311492,3135.5,3135.4,3.6061]
[1764785698002,3.2078,3136.2,3135.4,3.6061]
[1764785698203,4.9253,3136.2,3136.1,3.6061]
[1764785698406,3.51765492,3136.2,3136.1,3.6061]
[1764785698708,4.9253,3136.2,3136.1,3.6061]
[1764785699205,6.61963877,3136.2,3136.1,3.6061]
[1764785700300,1.7175,3135.8,3135.7,5.0648]
[1764785700504,4.90213877,3136.2,3135.4,1.857]
[1764785700505,4.4388,3135.5,3135.4,1.857]
[1764785700807,4.4388,3135.5,3135.3,5.0648]
[1764785700808,3.4087,3135.4,3135.3,5.0648]
[1764785701204,3.4087,3135.4,3135.3,3.2078]
[1764785701800,3.4087,3135.4,3135.0,1.12386706]
[1764785701801,3.4087,3135.1,3135.0,1.12386706]
[1764785702110,4.4388,3135.0,3134.9,3.21566128]
[1764785702604,3.2078,3135.3,3135.2,3.6061]
[1764785702605,4.9253,3135.3,3135.2,3.6061]
[1764785702810,5.23570419,3135.3,3135.2,3.6061]
[1764785703009,3.2078,3135.3,3135.2,3.6061]
[1764785703402,4.9253,3135.3,3135.2,3.6061]
[1764785703706,4.9253,3135.3,3134.9,3.21566128]
[1764785703707,4.4506,3135.0,3134.9,3.21566128]
[1764785703904,4.76107703,3135.0,3134.9,0.00786128]
[1764785704903,4.76107703,3135.0,3134.9,1.65246128]
[1764785705305,4.76107703,3135.0,3134.9,0.00786128]
[1764785706216,4.76107703,3135.0,3134.9,1.65246128]
[1764785706407,3.2078,3135.3,3134.9,3.38356128]
[1764785706708,3.73542905,3135.2,3135.1,3.3757]
[1764785706902,3.4251,3135.2,3135.1,1.6446]
[1764785707106,3.4251,3135.2,3134.9,4.86026128]
[1764785707107,4.4506,3135.0,3134.9,4.86026128]
[1764785707301,4.4506,3135.0,3134.9,3.21566128]
[1764785707608,4.76098591,3135.0,3134.9,3.21566128]
[1764785708305,0.31038591,3135.0,3134.9,6.59136128]
[1764785708507,6.6329,3135.3,3135.2,3.3757]
[1764785708711,6.94326894,3135.3,3135.2,3.3757]
[1764785708912,6.94326894,3135.3,3135.2,1.6446]
[1764785709515,0.31036894,3135.3,3135.2,3.3757]
[1764785709807,4.2379,3136.0,3135.2,3.3757]
[1764785710007,0.31032973,3135.9,3135.2,3.3757]
[1764785710215,6.6329,3135.5,3135.4,1.6446]
[1764785710414,7.96872973,3135.5,3135.4,1.6446]
[1764785710811,7.96872973,3135.5,3135.0,1.0024]
[1764785711012,1.7306,3135.1,3135.0,3.3757]
[1764785711815,3.4251,3135.1,3135.0,3.3757]
[1764785712211,1.7306,3135.1,3135.0,1.6446]
[1764785712419,1.7306,3135.1,3135.0,3.3757]
[1764785712613,3.4251,3135.1,3135.0,1.6446]
[1764785712921,4.4506,3135.0,3134.9,3.21566128]
[1764785713717,4.4506,3135.0,3134.9,0.00786128]
[1764785713909,4.76095909,3135.0,3134.9,0.00786128]
[1764785714506,4.76095909,3135.0,3134.9,3.38356128]
[1764785714918,4.76095909,3135.0,3134.9,0.00786128]
[1764785716919,3.4251,3135.0,3134.9,3.38356128]
[1764785717120,4.9384,3135.1,3135.0,3.3757]
[1764785717916,3.2078,3135.1,3135.0,3.3757]
[1764785718222,4.2333,3135.5,3135.0,4.3781]
[1764785718416,3.73526619,3135.4,3135.3,1.6446]
[1764785718617,1.7306,3135.0,3134.9,1.65246128]
[1764785718817,1.7306,3135.0,3134.9,0.00786128]
[1764785718818,4.4506,3135.0,3134.9,0.00786128]
[1764785721127,4.76078236,3135.0,3134.9,0.00786128]
[1764785721529,4.4506,3135.0,3134.9,0.00786128]
[1764785723025,4.2333,3135.5,3135.0,3.3757]
[1764785723218,3.4251,3135.1,3134.9,0.00786128]
[1764785723425,3.4251,3135.0,3134.9,1.65246128]
[1764785724429,3.4251,3135.0,3134.9,3.38356128]
[1764785725533,3.4251,3135.0,3134.9,1.65246128]
[1764785725723,4.4506,3135.0,3134.9,1.65246128]
[1764785726729,4.4506,3135.0,3134.9,0.00786128]
[1764785727228,3.2078,3135.1,3134.9,3.38356128]
[1764785727530,6.6329,3135.1,3135.0,3.3757]
[1764785728232,4.2379,3136.0,3135.4,3.3757]
[1764785728434,3.73542786,3135.9,3135.8,1.6446]
[1764785728934,3.73542786,3135.9,3135.5,3.2078]
[1764785729133,3.4251,3135.6,3135.5,4.8524]
[1764785729433,3.4251,3135.2,3135.1,3.3757]
[1764785729627,3.4251,3135.2,3135.0,4.33166706]
[1764785729628,3.4251,3135.1,3135.0,1.6446]
[1764785729829,3.4251,3135.1,3135.0,3.3757]
[1764785730425,3.4251,3135.1,3135.0,1.6446]
[1764785730833,4.4506,3135.0,3134.9,0.00786128]
[1764785731034,4.76124079,3135.0,3134.9,0.00786128]
[1764785731838,4.76124079,3135.0,3134.9,3.38356128]
[1764785732134,0.31064079,3135.0,3134.9,3.38356128]
[1764785732330,3.4251,3135.0,3134.9,1.65246128]
[1764785732526,3.4251,3135.0,3134.9,0.00786128]
[1764785732527,4.76124079,3135.0,3134.9,0.00786128]
[1764785735735,4.26804079,3135.0,3134.9,0.00786128]
[1764785740638,3.9574,3134.5,3134.4,4.63157122]
[1764785740837,3.9574,3134.5,3134.4,0.84357122]
[1764785741041,3.0676,3134.4,3134.3,0.84357122]
[1764785741448,3.0676,3134.4,3134.2,1.12386706]
[1764785741746,3.0676,3134.4,3134.3,0.8438441]
[1764785742130,3.0676,3134.4,3134.3,1.5829]
[1764785742643,3.0676,3134.4,3134.3,2.42669423]
[1764785743145,3.0676,3134.4,3134.3,0.84370808]
[1764785743542,3.0676,3133.9,3133.4,1.68324923]
[1764785743734,2.9552,3133.1,3133.0,4.6333]
[1764785744139,1.4478,3133.1,3133.0,6.0271]
[1764785744333,1.4478,3133.5,3133.4,1.3938]
[1764785744644,3.85663159,3133.5,3133.4,0.0030575]
[1764785745334,3.54625181,3133.5,3133.4,0.0030575]
[1764785745731,3.84945181,3133.5,3133.4,0.0030575]
[1764785746342,0.8918,3132.0,3131.4,1.68324923]
[1764785746546,2.9552,3131.5,3131.4,2.8193]
[1764785746746,2.9552,3131.5,3131.0,4.0879]
[1764785747342,3.847,3131.5,3131.0,4.09185839]
[1764785747840,2.9552,3131.1,3131.0,0.00395839]
[1764785748044,0.00355468,3131.1,3131.0,3.53285839]
[1764785749041,0.00355468,3131.1,3131.0,9.53285839]
[1764785749247,0.00355468,3131.1,3131.0,3.53285839]
[1764785749744,2.95875468,3131.1,3131.0,1.42945839]
[1764785749937,2.95875468,3131.1,3131.0,0.00395839]
[1764785750445,2.95875468,3131.1,3130.5,4.0879]
[1764785750446,2.95875468,3131.1,3130.5,3.2078]
[1764785750741,1.4478,3130.6,3130.5,6.0271]
[1764785750945,0.00355468,3131.1,3131.0,2.8193]
[1764785751448,1.45135468,3131.1,3131.0,2.8227257]
[1764785751745,1.45135468,3131.1,3131.0,3.7028257]
[1764785751746,0.00355468,3131.1,3131.0,3.7028257]
[1764785751948,3.2078,3131.8,3131.7,2.8193]
[1764785752850,0.00478629,3132.0,3131.9,2.8193]
[1764785753053,0.00824472,3132.0,3131.9,2.8193]
[1764785756549,1.4478,3131.1,3131.0,0.0034257]
[1764785756748,2.9552,3131.1,3131.0,0.0034257]
[1764785756953,3.2078,3131.3,3131.0,2.8227257]
[1764785758862,3.2078,3131.7,3131.2,2.8193]
[1764785759163,6.163,3131.7,3131.0,0.8835257]
[1764785759652,3.2078,3131.7,3131.6,2.8193]
[1764785759853,0.00824472,3132.0,3131.9,2.8193]
[1764785760652,0.00824472,3132.0,3131.5,0.8801]
[1764785760653,1.45604472,3132.0,3131.5,0.8801]
[1764785760959,0.00824472,3132.0,3131.9,2.8193]
[1764785765360,0.00824472,3132.0,3131.9,6.0271]
[1764785766262,1.45604472,3132.0,3131.9,6.0271]
[1764785766448,1.45604472,3132.0,3131.9,4.6333]
[1764785768153,0.00824472,3132.0,3131.9,6.0789]
[1764785768358,4.472e-05,3132.0,3131.9,6.0789]
[1764785768661,3.03192474,3132.6,3132.5,3.6512]
[1764785769160,4.52402474,3132.6,3132.5,2.849]
[1764785769356,4.52402474,3132.6,3132.5,1.4034]
[1764785769660,6.06466095,3132.6,3132.2,0.00478629]
[1764785769858,3.03476095,3132.6,3132.5,3.7748]
[1764785770157,0.00283621,3132.6,3132.5,3.7748]
[1764785770760,3.2078,3133.5,3133.4,1.4034]
[1764785770959,6.771,3133.5,3132.8,3.2078]
[1764785771257,6.93053,3133.5,3132.5,0.9258]
[1764785771460,6.2377,3133.5,3133.4,1.4034]
[1764785771855,6.24017691,3133.5,3133.4,0.00285693]
[1764785772050,6.77347691,3133.5,3133.4,0.00285693]
[1764785772256,7.08255191,3133.5,3133.4,0.00285693]
[1764785773461,13.08255191,3133.5,3132.8,1.37083657]
[1764785773652,3.0299,3131.7,3131.6,1.1214824]
[1764785773855,3.0299,3131.3,3130.7,3.2078]
[1764785774156,1.4921,3131.3,3130.7,3.2078]
[1764785774352,3.2078,3131.2,3131.1,2.849]
[1764785774561,3.21076432,3131.2,3131.1,2.85281316]
[1764785775062,6.24066432,3131.2,3131.1,0.00381316]
[1764785776455,3.0299,3130.9,3130.8,0.00478629]
[1764785776864,3.21076432,3131.2,3131.1,2.849]
[1764785777461,3.21076432,3131.2,3131.1,2.8518325]
[1764785777658,0.00296432,3131.2,3131.1,6.0596325]
[1764785777967,3.2078,3131.7,3131.6,2.849]
[1764785778269,3.0299,3131.5,3131.1,3.2106325]
[1764785778866,3.03352687,3131.5,3131.1,6.9986325]
[1764785779064,3.03352687,3131.5,3131.1,3.2106325]
[1764785779367,3.0299,3131.2,3131.1,0.0028325]
[1764785779569,0.30980702,3131.2,3131.1,1.4062325]
[1764785779760,3.2078,3131.3,3131.1,1.4062325]
[1764785780065,1.4921,3131.2,3131.1,0.0028325]
[1764785780258,3.0299,3131.2,3131.1,0.0028325]
[1764785780861,1.4921,3131.2,3131.1,1.4062325]
[1764785781063,3.2078,3131.3,3131.2,1.4034]
[1764785781671,4.6999,3131.3,3131.2,1.4034]
[1764785781871,3.0299,3131.2,3131.1,0.0028325]
[1764785782470,3.33967145,3131.2,3131.1,0.0028325]
[1764785783770,3.33960193,3131.2,3131.1,0.0028325]
[1764785783974,3.33960193,3131.2,3130.0,0.9258]
[1764785783975,3.18957,3130.7,3129.6,0.9258]
[1764785784269,21.24063434,3131.2,3129.6,0.9258]
[1764785784270,3.2078,3130.1,3129.6,0.9258]
[1764785784862,1.4977,3129.7,3129.6,0.00375501]
[1764785785173,4.7836,3129.7,3129.6,0.00375501]
[1764785786066,4.7836,3129.7,3129.0,0.9258]
[1764785786067,1.5758,3129.6,3129.0,0.9258]
[1764785786268,3.2078,3129.2,3129.1,1.5401]
[1764785786968,3.2078,3129.2,3129.0,1.0095]
[1764785787165,3.21160439,3129.2,3129.0,1.01208819]
[1764785787762,1.5682,3129.1,3129.0,0.10298819]
[1764785787979,0.7841,3129.1,3129.0,0.10298819]
[1764785788177,3.21160439,3129.2,3129.1,1.5401]
[1764785788574,1.72796,3129.1,3129.0,0.05779791]
[1764785788778,0.7841,3128.5,3128.4,0.9091]
[1764785789075,4.776,3128.5,3127.8,4.1336]
[1764785789678,4.776,3128.5,3127.8,4.1359477]
[1764785790273,3.9919,3128.5,3127.8,4.1359477]
[1764785790575,3.2078,3128.5,3128.4,3.9842]
[1764785792468,3.2078,3128.9,3128.8,3.0751]
[1764785792971,0.00380439,3129.2,3129.1,3.0751]
[1764785793272,4.7967,3129.8,3129.0,0.9091]
[1764785793469,6.2444,3129.8,3129.0,0.9091]
[1764785794075,6.2444,3129.8,3127.8,0.0023477]
[1764785794076,2.3924,3127.9,3127.8,0.0023477]
[1764785794373,3.2078,3127.9,3127.8,2.6071]
[1764785794680,3.2125944,3128.2,3127.8,0.9581]
[1764785795078,2.3924,3127.9,3127.0,3.2078]
[1764785795379,3.2078,3127.6,3127.2,0.91300786]
[1764785795575,3.2100552,3127.6,3127.2,0.91300786]
[1764785796375,3.2100552,3127.6,3127.5,3.1165]
[1764785796569,0.0022552,3127.6,3127.2,0.91300786]
[1764785796875,0.0022552,3127.6,3127.5,3.1165]
[1764785798177,3.2078,3128.0,3127.9,3.1165]
[1764785798384,0.0047944,3128.2,3128.1,3.1165]
[1764785799280,0.00707591,3128.2,3128.1,3.1165]
[1764785799569,0.00707591,3128.2,3127.4,3.2078]
[1764785799980,0.00707591,3128.2,3128.1,3.1165]
[1764785800178,0.00707591,3128.2,3127.8,0.9581]
[1764785800376,3.2078,3128.1,3127.8,0.9581]
[1764785800576,0.00707591,3128.2,3127.8,0.9581]
[1764785801282,3.2078,3128.1,3127.8,0.9581]
[1764785802082,3.2078,3128.1,3127.2,0.91300786]
[1764785802083,2.397,3127.9,3127.2,0.91300786]
[1764785802283,3.2078,3127.7,3127.2,0.91300786]
[1764785803483,2.397,3127.3,3127.2,0.00390786]
[1764785803677,2.397,3127.3,3125.7,1.2814124]
[1764785803678,0.15988,3126.6,3126.1,3.2078]
[1764785803881,0.15988,3126.6,3124.9,1.1214824]
[1764785803882,2.397,3125.9,3125.8,3.2078]
[1764785804185,1.9458,3125.1,3124.6,3.2078]
[1764785804575,0.00336605,3125.1,3124.6,0.00266242]
[1764785804776,3.2078,3124.8,3124.6,0.00266242]
[1764785805387,3.2078,3124.7,3123.6,4.1659]
[1764785805575,3.2078,3124.4,3123.1,3.2078]
[1764785805884,0.0047944,3124.5,3122.7,1.1373]
[1764785805885,3.2078,3123.3,3122.7,1.1373]
[1764785806085,0.16003,3123.7,3122.7,1.1373]
[1764785806086,3.2078,3122.9,3122.7,1.1373]
[1764785806278,3.21109825,3122.9,3122.7,0.00408324]
[1764785806480,3.21109825,3122.9,3121.7,3.2078]
[1764785806481,0.97178,3122.7,3121.7,3.2078]
[1764785806781,3.2078,3121.8,3120.1,3.2078]
[1764785806976,1.94242984,3121.4,3120.6,4.3451]
[1764785807184,5.15022984,3121.6,3120.6,4.3451]
[1764785807382,3.21260223,3122.5,3121.6,1.1373]
[1764785807586,0.00480223,3122.5,3122.4,1.1373]
[1764785807784,3.21260223,3122.5,3121.6,4.34846334]
[1764785808482,0.00480223,3122.5,3122.4,4.3451]
[1764785808677,0.00480223,3122.5,3122.4,1.1373]
[1764785808983,0.00329825,3122.9,3122.4,10.3451]
[1764785809184,0.00329825,3122.9,3122.4,1.1373]
[1764785809378,3.2078,3123.8,3122.4,1.1373]
[1764785809583,3.2078,3123.8,3122.8,3.2078]
[1764785809882,3.2078,3123.8,3122.4,4.1113]
[1764785809883,0.00480223,3123.6,3123.4,3.2078]
[1764785810079,0.00480223,3123.6,3123.2,1.1373]
[1764785810479,0.00809519,3123.6,3123.2,1.1373]
[1764785810688,0.00809519,3123.6,3122.8,3.2078]
[1764785810689,3.2078,3123.3,3122.8,3.2078]
[1764785810894,0.00809519,3123.6,3123.2,1.1373]
[1764785812586,3.21589519,3123.6,3123.2,1.1373]
[1764785812987,0.00809519,3123.6,3123.2,1.1373]
[1764785813595,2.54887606,3124.7,3123.2,1.1373]
[1764785813596,3.2078,3123.9,3123.2,1.1373]
[1764785813793,3.2078,3123.5,3123.2,1.1373]
[1764785814488,3.21190633,3123.5,3123.2,1.1373]
[1764785815586,5.76078239,3123.5,3122.7,3.2078]
[1764785815786,0.00410633,3123.5,3122.4,1.1373]
[1764785815993,0.00410633,3123.5,3123.4,1.1373]
[1764785816385,6.33e-06,3123.5,3123.4,1.1373]
[1764785816695,6.33e-06,3123.5,3122.8,3.2078]
[1764785816993,3.2078,3123.4,3122.8,3.2078]
[1764785817994,6.33e-06,3123.5,3122.8,3.2078]
[1764785818194,0.16008,3122.8,3122.1,0.00480223]
[1764785818390,3.2078,3122.3,3122.1,0.00480223]
[1764785820584,2.54887606,3122.4,3122.1,0.00480223]
[1764785820788,3.2078,3122.7,3122.1,0.00480223]
[1764785821600,3.2078,3122.7,3122.4,1.1373]
[1764785822195,3.2078,3123.1,3122.4,1.1373]
[1764785822406,0.16011,3122.3,3121.6,0.00336334]
[1764785822704,5.75667606,3121.9,3121.6,0.00336334]
[1764785823099,3.2078,3121.9,3121.6,0.00336334]
[1764785824202,3.2078,3121.9,3120.1,3.2078]
[1764785824203,0.16016,3121.2,3120.1,3.2078]
[1764785824516,2.54887606,3120.6,3120.1,3.2078]
[1764785824697,3.2078,3120.8,3120.1,3.2078]
[1764785824901,5.75667606,3121.2,3120.6,1.1336]
[1764785825410,3.2112881,3121.2,3120.6,1.13740965]
[1764785825613,0.0034881,3121.2,3120.6,1.13740965]
[1764785825806,0.0034881,3121.2,3121.0,3.2078]
[1764785826004,2.54887606,3121.8,3121.0,3.2078]
[1764785826910,0.00320132,3121.8,3121.0,3.2078]
[1764785827107,0.00320132,3121.8,3121.6,1.1336]
[1764785828305,0.00320132,3121.8,3121.0,3.2078]
[1764785829202,0.00320132,3121.8,3121.0,3.36797]
[1764785830105,0.00320132,3121.8,3121.4,3.2078]
[1764785832212,0.16017,3121.1,3120.6,0.00380965]
[1764785832402,5.16024065,3120.7,3120.0,1.1373]
[1764785832605,3.2078,3120.1,3120.0,1.1373]
[1764785832797,1.95244065,3121.7,3120.0,1.1373]
[1764785832798,0.00480223,3120.4,3120.0,4.3451]
[1764785833606,0.00480223,3120.4,3120.0,4.34834756]
[1764785835211,0.00480223,3120.4,3120.0,4.50856756]
[1764785837315,3.2078,3121.5,3120.6,1.1336]
[1764785837617,3.2078,3121.5,3120.6,4.50159]
[1764785838117,3.2078,3121.6,3120.6,4.50159]
[1764785838315,0.00480223,3121.4,3120.8,0.00480223]
[1764785839214,0.00480223,3121.4,3121.3,1.1336]
[1764785841513,0.00480223,3121.4,3121.3,4.9851]
[1764785846912,3.2078,3122.4,3121.7,3.8515]
[1764785847124,0.31050816,3122.3,3121.8,1.1336]
[1764785848027,0.31380323,3122.3,3121.8,1.1336]
[1764785848325,0.00329507,3122.3,3121.8,1.1336]
[1764785850222,0.00329507,3122.3,3122.2,3.8515]
[1764785850524,0.00329507,3122.3,3122.2,3.855127]
[1764785850920,3.2078,3122.9,3122.8,3.8515]
[1764785851827,3.2078,3123.4,3123.3,1.9397]
[1764785852229,3.21138383,3123.4,3123.3,1.9397]
[1764785852726,3.21138383,3123.4,3123.0,1.13840223]
[1764785853519,2.26786661,3124.8,3123.3,3.8309]
[1764785853722,3.97137338,3125.5,3125.0,3.8722]
[1764785853920,0.9765,3126.0,3125.4,3.8722]
[1764785854126,7.01743494,3126.6,3125.4,3.8722]
[1764785854127,3.2078,3126.4,3125.4,3.8722]
[1764785854316,3.2078,3126.4,3125.7,3.2078]
[1764785854522,3.21568696,3126.4,3125.7,3.21633856]
[1764785855122,0.00788696,3126.4,3126.1,3.2078]
[1764785855322,0.00788696,3126.4,3125.7,3.21633856]
[1764785856530,0.00788696,3126.4,3126.1,3.2078]
[1764785856926,0.00788696,3126.4,3125.7,3.21633856]
[1764785858630,5.0601,3125.8,3125.7,3.21633856]
[1764785858933,5.0601,3125.8,3125.7,0.00853856]
[1764785859130,3.2078,3126.3,3125.7,0.00853856]
[1764785859426,0.00788696,3126.4,3125.7,0.00853856]
[1764785859828,0.00788696,3126.4,3126.3,2.681]
[1764785861831,5.0601,3125.8,3125.7,0.00853856]
[1764785864929,8.2679,3125.8,3125.7,0.00853856]
[1764785865238,14.2679,3125.8,3125.1,3.2078]
[1764785865436,8.2679,3125.8,3125.1,3.2078]
[1764785866139,8.2679,3125.8,3125.1,3.21664717]
[1764785867442,3.2078,3125.8,3125.7,5.3036]
[1764785868243,2.1537959,3126.2,3125.7,5.3036]
[1764785869744,3.2078,3126.3,3126.1,2.681]
[1764785869949,3.2078,3126.3,3125.7,2.6226]
[1764785869950,3.2078,3126.3,3126.2,2.681]
[1764785873245,0.00788696,3126.4,3126.3,2.681]
[1764785874442,0.00788696,3126.4,3126.3,5.3036]
[1764785874847,2.5257,3126.1,3126.0,3.2078]